[Event "Romanian Superliga 2024"]
[Site "Mamaia"]
[Date "2024.10.02"]
[Round "5.21"]
[White "Tamas, Christian-Arrydan"]
[Black "Ghimpu, Samuel-Timotei"]
[Result "0-1"]
[ECO "E92"]
[WhiteElo "2137"]
[BlackElo "2456"]
[Annotator "TA"]
[PlyCount "88"]
[EventDate "2024.09.26"]
[EventType "team-tourn"]
[EventCountry "ROU"]
[SourceTitle "playchess.com"]
[Source "ChessBase"]
[SourceQuality "1"]
[TimeControl "40/5400+30:1800+30"]

{[%evp 17,88,34,28,24,31,18,17,-37,0,0,-20,-16,-15,-49,-34,-113,-96,-110,-106,-109,-110,-110,-87,-234,-241,-224,-225,-226,-292,-481,-490,-503,-323,-591,-593,-585,-583,-602,-613,-651,-620,-620,-618,-714,-286,-396,-385,-480,-456,-601,-324,-362,-370,-370,-276,-360,-369,-344,-338,-362,-361,-949,-948,-871,-494,-494,-494,-1171,-739,-29949,-11822,-29952,-5359]} 1. d4 {[%emt 0:00:04]} Nf6 {[%emt 0:00:17]} 2. c4 {[%emt 0:00:04]} g6 {[%emt 0:00:39]} 3. Nc3 {[%emt 0:00:04]} Bg7 {[%emt 0:00:11]} 4. e4 {[%emt 0:00:05]} O-O {[%emt 0:00:12]} 5. Nf3 {[%emt 0:00:03]} d6 {[%emt 0:00:12]} 6. Be2 {[%emt 0:00:04]} e5 {[%emt 0:00:11]} 7. d5 {[%emt 0:00:03]} Na6 {[%emt 0:00:10]} 8. Nd2 {[%emt 0:00:36]} Ne8 {[%emt 0:00:57]} 9. h4 {[%emt 0:02:42] E92: King's Indian: Classical: 6 Be2 e5: 7 dxe5, 7 Be3 and Petrosian System without 7...Nbd7.} f5 {[%emt 0:00:30]} 10. h5 {[%emt 0:00:05]} gxh5 {[%emt 0:00:02]} 11. a3 $146 {[%emt 0:08:17]} ({Predecessor:} 11. Rxh5 Nf6 12. Rh1 Qe8 13. a3 Qg6 14. Nf3 fxe4 15. Nh4 Qf7 16. Be3 Nc5 17. Qc2 {0-1 Ozenir,E (2386)-Svane,F (2626) Wch U20 60th 2023 (5)}) 11... Nf6 {[%emt 0:00:36]} 12. Qc2 {[%emt 0:00:17]} (12. b4 $11) 12... Nc5 {[%emt 0:07:48]} 13. b4 $1 {[%emt 0:09:16]} Ncxe4 {[%emt 0:00:09]} 14. Ndxe4 {[%emt 0:00:04]} fxe4 {[%emt 0:00:09]} 15. Bg5 {[%emt 0:19:29]} Bf5 {[%emt 0:00:11]} 16. O-O-O {[%emt 0:01:01]} (16. Bxh5 $15 Qd7 17. Qe2) 16... Qd7 $17 {[%emt 0:14:21]} 17. Bxf6 {[%emt 0:07:25]} Rxf6 {[%emt 0:00:07]} 18. Nxe4 {[%emt 0:00:15]} Bxe4 {[%emt 0:00:09]} 19. Qxe4 {[%emt 0:00:25]} Qa4 {[%emt 0:00:09]} (19... Rxf2 20. Rxh5 h6 21. Bd3 $15) 20. Kb2 {[%emt 0:14:33] [#]} (20. Rh3 $17) 20... Rf4 $1 $19 {[%emt 0:03:00]} (20... Rxf2 21. Rxh5 h6 (21... Qxd1 $2 22. Qxh7+ Kf7 23. Rf5+ Rxf5 24. Qxf5+ Kg8 25. Bxd1 $18) 22. Rd2 $17) 21. Qe3 {[%emt 0:00:49] [#]} e4+ $1 {[%emt 0:03:20]} 22. Kb1 {[%emt 0:00:20]} Rxf2 {[%emt 0:00:08]} 23. Rh3 $2 {[%emt 0:10:14]} (23. Qxf2 $2 Qb3+ 24. Kc1 Qb2#) (23. Rd2 {was called for.} Raf8 (23... Rxg2 $2 24. Bd1 $18) 24. Ka2) 23... Raf8 $19 {[%emt 0:02:21]} (23... Rxg2 24. Qxe4 $17) 24. Rdh1 {[%emt 0:05:08]} R8f4 {[%emt 0:06:12]} (24... Rxg2 25. Qxe4 Rff2 26. Qe6+ Kf8 (26... Kh8 27. b5 $15) 27. Qc8+ Qe8 28. Rf3+ Bf6 (28... Rxf3 29. Qxe8+ Kxe8 30. Bxf3 $19) 29. Qxe8+ Kxe8 30. Rxf2 Rxf2 31. Bxh5+ Ke7 32. Bg4 $15) 25. Rg3 $2 {[%emt 0:11:05]} (25. Kc1 {is the only way for White.}) 25... h4 $19 {[%emt 0:02:08]} 26. Rxg7+ {[%emt 0:00:54]} Kxg7 {[%emt 0:00:06]} 27. Rxh4 {[%emt 0:00:18]} Rxh4 {[%emt 0:09:50]} 28. Qg3+ {[%emt 0:01:07]} Rg4 {[%emt 0:00:09]} 29. Qxg4+ {[%emt 0:00:47]} Kf8 {[%emt 0:00:08]} 30. Qc8+ {[%emt 0:03:49]} Ke7 {[%emt 0:04:36]} (30... Qe8 $142 31. Qg4 h5 32. Qxh5 Qxh5 (32... Rxg2 33. Qh8+ Ke7 34. Qh4+ Kf7 35. Bh5+ Rg6 36. Bxg6+ Kxg6 37. Qg4+ Kh6 38. Qf4+ Kg7 39. Qg5+ Kf8 40. Qf4+ Kg7 41. Qg5+ Kf8 42. Qf5+ Kg7 43. Qg5+ $11) 33. Bxh5 Kg7 (33... Rxg2 $2 34. Kc1 $19)) 31. Qe6+ {[%emt 0:02:54]} Kd8 {[%emt 0:00:44]} 32. Qg8+ {[%emt 0:01:26]} Qe8 {[%emt 0:00:08]} 33. Qxh7 {[%emt 0:00:33]} Kc8 {[%emt 0:00:24]} (33... Rxe2 34. Qh4+ Kc8 (34... Qe7 35. Qh8+ Qe8 36. Qh4+ Kc8 37. Qg4+ Kb8 38. Qxe2 $17) 35. Qg4+ Kb8 36. Qxe2 $15) 34. Bh5 {[%emt 0:01:09]} Qf8 {[%emt 0:01:03]} 35. Qxe4 {[%emt 0:00:14]} Qh8 {[%emt 0:00:17]} 36. Be2 {[%emt 0:01:26]} Kb8 {[%emt 0:00:37]} 37. Kc2 {[%emt 0:00:38]} a6 {[%emt 0:00:33]} 38. Kb3 {[%emt 0:00:10]} Rf8 {[%emt 0:01:17]} 39. Bf3 $2 {[%emt 0:00:50]} (39. Bd3) 39... Re8 $19 {[%emt 0:00:05]} 40. Qd3 {[%emt 0:00:00]} Qf6 {[%emt 0:00:00]} 41. Qd2 {[%emt 0:07:26]} Qa1 {[%emt 0:00:26]} 42. Ka4 {[%emt 0:01:59]} (42. Bd1 $142) 42... Qf1 {[%emt 0:02:00]} 43. Qd4 {[%emt 0:00:45]} b5+ {[%emt 0:00:56]} 44. Ka5 {[%emt 0:03:55]} Qxc4 {[%emt 0:01:24]} ({Not} 44... bxc4 45. Kxa6 Qd3 (45... c3+ 46. b5 $11) 46. Qa7+ Kc8 47. Qb7+ Kd7 48. Bg4+ Ke7 49. Qxc7+ Kf6 50. Qxd6+ Kg5 51. Bd7 c3+ 52. Bb5 Ra8+ 53. Kb7 Qxb5+ 54. Kxa8 $11) (44... Qc1 $142 45. a4 bxa4 (45... Qxc4 $2 46. Qxc4 bxc4 47. Kxa6 $19) (45... bxc4 $2 46. Be4 $19) 46. Be4 Qf4 47. Kxa6 Qxe4 48. Qa7+ Kc8 49. Qa8+ Kd7 50. Qc6+ Kd8 51. Kb7 Qh7 (51... Qxg2 52. Qxc7#) 52. Qxa4 c5+ 53. Ka6 Qc7 54. bxc5 Qc8+ 55. Ka5 Qxc5+ 56. Qb5 Kc7 57. Qxc5+ dxc5 58. g4 Re4 59. Kb5 Kd6 (59... Rxg4 60. Kxc5 Kd7 61. Kb4 Kd6 62. Kc3 Kc5 63. Kd3 Rd4+ 64. Ke3 Rxc4 65. d6 Kxd6 66. Kd3 Kd5 67. Ke3 Rd4 68. Kf3 Re4 69. Kg3 Kd4 70. Kf2 Re3 71. Kf1 Kd3 72. Kf2 Kd2 73. Kg1 Ke1 74. Kg2 Ke2 75. Kh1 Rg3 76. Kh2 Kf2 77. Kh1 Rh3#) 60. g5 Rg4 61. Ka4 Rxc4+ 62. Kb3 Kxd5 63. g6 Rg4 64. Kc3 c4 (64... Rxg6 65. Kd3 c4+ 66. Ke2 Kd4 67. Kf3 c3 68. Kf4 c2 69. Kf5 Rh6 70. Kf4 c1=Q+ 71. Kf3 Rf6+ 72. Kg4 Rg6+ 73. Kh5 Qh6#) 65. Kd2 Kd4 (65... Rxg6 66. Ke3 Re6+ 67. Kd2 Kd4 68. Kc2 c3 69. Kb3 Re2 70. Kb4 Rb2+ 71. Ka4 c2 72. Ka5 c1=Q 73. Ka6 Qa1#) 66. Ke2 Rxg6 67. Kf3 c3 68. Kf4 c2 69. Kf5 Rh6 (69... c1=R 70. Kxg6 Ke5 71. Kf7 Rg1 72. Ke7 Rg7+ 73. Ke8 Kf6 74. Kd8 Ke6 75. Kc8 Kd6 76. Kb8 Kc6 77. Ka8 Kb6 78. Kb8 Rg8#) 70. Kf4 c1=Q+ (70... c1=B+ 71. Kg4 Ke4 72. Kg3 Bf4+ 73. Kf2 Be3+ 74. Ke2 Rg6 75. Kf1 Kf3 76. Ke1 Rg1#) 71. Kf3 Rf6+ (71... Qe3+ $2 72. Kg4 Rg6+ 73. Kh5 Qh6#) 72. Kg4 Rg6+ 73. Kh5 Qh6#) 0-1

[Event "Romanian Superliga 2024"]
[Site "Mamaia"]
[Date "2024.10.02"]
[Round "5.23"]
[White "Sabarez, Iulian"]
[Black "Coca, Cristi-Iulian"]
[Result "0-1"]
[ECO "B41"]
[WhiteElo "2051"]
[BlackElo "2233"]
[Annotator "TA"]
[PlyCount "70"]
[EventDate "2024.09.26"]
[EventType "team-tourn"]
[EventCountry "ROU"]
[SourceTitle "playchess.com"]
[Source "ChessBase"]
[SourceQuality "1"]
[TimeControl "40/5400+30:1800+30"]

{[%evp 13,70,29,45,39,39,20,70,-12,-2,-10,-8,-197,-195,-283,-219,-218,-173,-177,-162,-196,-211,-301,-254,-450,-418,-459,-422,-417,-402,-445,-436,-428,-430,-446,-410,-463,-452,-486,-558,-567,-560,-628,-598,-862,-858,-1709,-1675,-29954,-11795,-29980,-29981,-29987,-29985,-29986,-29982,-29989,-29990,-29990,-29991]} 1. e4 {[%emt 0:00:13]} c5 {[%emt 0:00:05]} 2. Nf3 {[%emt 0:00:04]} e6 {[%emt 0:00:04]} 3. d4 {[%emt 0:00:02]} cxd4 {[%emt 0:00:04]} 4. Nxd4 {[%emt 0:00:03]} a6 {[%emt 0:00:04]} 5. c4 {[%emt 0:00:03]} Nf6 {[%emt 0:00:04]} 6. Nc3 {[%emt 0:00:05]} Qc7 {[%emt 0:00:04]} 7. a3 {[%emt 0:00:05]} b6 {[%emt 0:00:03][%cal Bb7b6,Bb6b5][%mdl 32]} 8. f4 {[%emt 0:01:09]} Bb7 {[%emt 0:02:37]} 9. Bd3 {[%emt 0:01:48]} h5 {[%emt 0:09:59]} ({Besser ist} 9... Nc6 $11 10. Nb3 d6) 10. b4 {[%emt 0:14:40] [#]} ({Günstiger ist} 10. Qe2 $14) 10... b5 $1 $11 {[%emt 0:06:52]} 11. c5 {[%emt 0:24:25]} d6 {[%emt 0:03:49]} 12. Nb3 {[%emt 0:14:17] Verliert die Partie.} (12. e5 $11 dxe5 (12... Bxg2 $2 {geht unter.} 13. Rg1 $18) 13. Nxe6 fxe6 14. Bg6+ Ke7 15. O-O) 12... dxc5 $19 {[%emt 0:00:17] Und ...c4 würde nun gewinnen.} 13. Nxc5 {[%emt 0:00:13]} (13. e5 $142) 13... Bxc5 {[%emt 0:00:15]} 14. bxc5 {[%emt 0:00:04]} Qxc5 {[%emt 0:00:11]} 15. Bb2 {[%emt 0:03:55]} Qe3+ {[%emt 0:08:21]} 16. Qe2 {[%emt 0:00:27]} Qxf4 {[%emt 0:02:15]} 17. Rf1 {[%emt 0:01:42]} (17. e5 $142 Ng4 18. Rf1) 17... Qxh2 {[%emt 0:01:04] ...Nbd7 wäre nun fies.} 18. Nd5 $2 {[%emt 0:09:37]} (18. e5 Qh4+ 19. Kd2 Qg5+ 20. Ke1 Qg3+ 21. Kd2) 18... Qg3+ {[%emt 0:03:49]} ({Keinesfalls} 18... exd5 19. Rxf6 dxe4 (19... gxf6 $2 20. exd5+ Kf8 21. Bxf6 $19) 20. Rf2 $19) 19. Kd1 {[%emt 0:01:13]} Nxd5 {[%emt 0:02:01]} 20. exd5 {[%emt 0:01:56]} Bxd5 {[%emt 0:00:10]} 21. Be5 {[%emt 0:05:20]} Qxg2 {[%emt 0:04:13]} 22. Qxg2 {[%emt 0:01:19]} Bxg2 {[%emt 0:00:07]} 23. Rg1 {[%emt 0:00:11]} Bf3+ {[%emt 0:00:11]} 24. Kd2 {[%emt 0:00:04]} f6 {[%emt 0:09:43]} 25. Bxb8 {[%emt 0:10:15]} Rxb8 {[%emt 0:00:16]} 26. Rxg7 {[%emt 0:00:04]} Rb7 {[%emt 0:00:49]} 27. Rg6 {[%emt 0:00:29]} Kf7 {[%emt 0:01:05]} 28. Rf1 {[%emt 0:01:43] [#]} Rd7 $1 {[%emt 0:00:27][%cal Oh8d8] Droht ...Rhd8! und aus.} 29. Rfg1 {[%emt 0:02:26]} (29. Rxf6+ Kxf6) 29... Bg4 {[%emt 0:00:23] Zielt auf ...Rhd8 ab.} 30. R6xg4 {[%emt 0:00:25]} hxg4 {[%emt 0:00:05]} 31. Rxg4 {[%emt 0:00:09] KRR-KRB} Rh3 {[%emt 0:00:05] Schwarz setzt Matt.} 32. a4 {[%emt 0:00:02]} Rhxd3+ {[%emt 0:00:10]} 33. Kc2 {[%emt 0:00:08]} R3d4 {[%emt 0:00:35]} 34. Rxd4 {[%emt 0:00:29]} Rxd4 {[%emt 0:00:04]} 35. axb5 {[%emt 0:00:03]} axb5 {[%emt 0:00:05] Gewichteter Fehlerwert: Weiß=1.14/Schwarz=0.12 (sehr präzise) .  Verlustzug:     	Weiß=1     	---        Fehler:       	Weiß=4     	Schwarz=1     Ungenau:       	Weiß=2     	---        OK:         	Weiß=5     	Schwarz=7     Bester:       	---       	Schwarz=3     Brilliant:      	---       	Schwarz=1} 0-1

[Event "Romanian Superliga 2024"]
[Site "Mamaia"]
[Date "2024.10.02"]
[Round "5.24"]
[White "Pisu, Robert-Daniel"]
[Black "Costache, Andrei Eugeniu"]
[Result "1-0"]
[ECO "B90"]
[WhiteElo "2085"]
[BlackElo "1977"]
[Annotator "NA RC"]
[PlyCount "129"]
[EventDate "2024.09.26"]
[EventType "team-tourn"]
[EventCountry "ROU"]
[SourceTitle "playchess.com"]
[Source "ChessBase"]
[SourceQuality "1"]
[TimeControl "40/5400+30:1800+30"]

1. e4 {[%emt 0:00:03]} c5 {[%emt 0:00:13]} 2. Nf3 {[%emt 0:00:05]} d6 {[%emt 0:00:06]} 3. d4 {[%emt 0:00:04]} cxd4 {[%emt 0:00:04]} 4. Nxd4 {[%emt 0:00:03]} Nf6 {[%emt 0:00:10]} 5. Nc3 {[%emt 0:00:06]} a6 $11 {[%emt 0:00:13]} 6. Rg1 {[%emt 0:00:14]} e5 {[%emt 0:01:23]} 7. Nb3 {[%emt 0:00:09]} h5 {[%emt 0:01:07]} 8. Bg5 {[%emt 0:00:19]} Be7 {[%emt 0:00:49]} 9. Qd2 {[%emt 0:00:50]} Be6 {[%emt 0:00:43]} 10. f4 {[%emt 0:03:57]} b5 {[%emt 0:05:16]} 11. Bd3 {[%emt 0:06:06]} Nc6 {[%emt 0:04:03]} 12. O-O-O {[%emt 0:13:24]} Rc8 {[%emt 0:03:04]} 13. Kb1 {[%emt 0:11:02]} Qb6 {[%emt 0:07:05]} 14. Nd5 {[%emt 0:24:12]} Qb7 {[%emt 0:28:27]} 15. Nxe7 {[%emt 0:04:06]} Nxe7 {[%emt 0:01:21]} 16. fxe5 {[%emt 0:06:18]} dxe5 {[%emt 0:02:06]} 17. Bxf6 {[%emt 0:00:18]} gxf6 {[%emt 0:00:06]} 18. Rgf1 {[%emt 0:02:52]} Ng6 {[%emt 0:05:21]} 19. g3 {[%emt 0:09:33]} Qe7 {[%emt 0:02:30]} 20. Qf2 {[%emt 0:03:12]} Kf8 {[%emt 0:10:57]} 21. Qxf6 {[%emt 0:01:15]} Qxf6 {[%emt 0:00:22]} 22. Rxf6 {[%emt 0:00:04]} h4 {[%emt 0:00:20]} 23. Rf2 {[%emt 0:07:58]} hxg3 {[%emt 0:01:31]} 24. hxg3 {[%emt 0:00:01]} Rh3 {[%emt 0:00:25]} 25. Rg1 {[%emt 0:00:10]} Ke7 {[%emt 0:00:58]} 26. Nc1 {[%emt 0:04:13]} Rg8 {[%emt 0:01:50]} 27. Bf1 {[%emt 0:00:12]} Rh5 {[%emt 0:00:54]} 28. Nd3 {[%emt 0:02:43]} Rg5 {[%emt 0:06:48]} 29. Nc5 {[%emt 0:00:32]} Nf4 {[%emt 0:01:17]} 30. Nxa6 {[%emt 0:00:40]} Rxg3 {[%emt 0:00:24]} 31. Rxg3 {[%emt 0:00:09]} Rxg3 {[%emt 0:00:05]} 32. b3 {[%emt 0:01:06]} Bd7 {[%emt 0:02:34]} 33. Nc5 {[%emt 0:00:29]} Bc6 {[%emt 0:00:33]} 34. Nd3 {[%emt 0:00:30]} Ng6 {[%emt 0:01:21]} 35. Nc5 {[%emt 0:00:31]} Re3 {[%emt 0:04:34]} 36. Bd3 {[%emt 0:00:27]} Nf4 {[%emt 0:00:21]} 37. b4 {[%emt 0:00:25]} Kd6 {[%emt 0:08:40]} 38. Rh2 {[%emt 0:00:26]} Nxd3 {[%emt 0:00:55]} 39. Rh6+ {[%emt 0:00:32]} Kc7 {[%emt 0:00:28]} 40. cxd3 {[%emt 0:00:00]} Rf3 {[%emt 0:00:00]} 41. Na6+ {[%emt 0:03:09]} Kb7 {[%emt 0:01:47]} 42. Nc5+ {[%emt 0:00:10]} Kc7 {[%emt 0:00:07]} 43. Kb2 {[%emt 0:01:48]} Rf2+ {[%emt 0:04:26]} 44. Kb3 {[%emt 0:00:21]} Rf3 {[%emt 0:00:07]} 45. Rh5 {[%emt 0:06:11]} Kd6 {[%emt 0:03:02]} 46. Kc3 {[%emt 0:00:11]} Rf1 {[%emt 0:01:21]} 47. Rh6+ {[%emt 0:02:42]} Kc7 {[%emt 0:00:09]} 48. a3 {[%emt 0:05:07]} Rf2 {[%emt 0:03:59]} 49. Rh3 {[%emt 0:02:31]} Kd6 {[%emt 0:07:54]} 50. Kb3 {[%emt 0:03:06]} Kc7 {[%emt 0:01:29]} 51. a4 {[%emt 0:01:38]} bxa4+ {[%emt 0:00:03]} 52. Nxa4 {[%emt 0:00:07]} Bxa4+ {[%emt 0:00:13]} 53. Kxa4 {[%emt 0:00:03]} Kb6 {[%emt 0:00:06]} 54. Kb3 {[%emt 0:05:57]} Kc6 {[%emt 0:01:00]} 55. Rh5 {[%emt 0:00:31]} f6 {[%emt 0:09:04]} 56. Rf5 {[%emt 0:00:04]} Rf4 {[%emt 0:02:41]} 57. Kc4 {[%emt 0:03:05]} Kb6 {[%emt 0:00:07]} 58. Rxf4 {[%emt 0:00:36]} exf4 {[%emt 0:02:31]} 59. d4 {[%emt 0:00:06]} f3 {[%emt 0:00:00]} 60. Kd3 {[%emt 0:00:04]} Kb5 {[%emt 0:00:00]} 61. d5 {[%emt 0:00:32]} Kb6 {[%emt 0:00:00]} 62. Ke3 {[%emt 0:00:10]} Kc7 {[%emt 0:00:00]} 63. Kxf3 {[%emt 0:00:04]} Kd6 {[%emt 0:00:00]} 64. Kf4 {[%emt 0:00:09]} f5 {[%emt 0:00:00]} 65. Kxf5 {[%emt 0:00:04]} 1-0

[Event "Romanian Superliga 2024"]
[Site "Mamaia"]
[Date "2024.10.02"]
[Round "5.25"]
[White "Lashkin, Jegor"]
[Black "Pranav Vijay"]
[Result "1-0"]
[ECO "E11"]
[WhiteElo "2472"]
[BlackElo "2252"]
[Annotator "TA"]
[PlyCount "73"]
[EventDate "2024.09.26"]
[EventType "team-tourn"]
[EventCountry "ROU"]
[SourceTitle "playchess.com"]
[Source "ChessBase"]
[SourceQuality "1"]
[TimeControl "40/5400+30:1800+30"]

{[%evp 17,73,31,35,23,43,39,43,35,48,39,51,38,93,77,87,73,79,71,85,92,77,87,139,145,154,165,151,171,176,172,179,154,222,220,387,362,508,279,527,519,503,362,531,518,696,696,687,687,680,675,1013,1003,985,953,1197,1150,1854,1736]} 1. d4 {[%emt 0:00:03]} Nf6 {[%emt 0:01:00]} 2. c4 {[%emt 0:00:10]} e6 {[%emt 0:00:08]} 3. Nf3 {[%emt 0:00:08]} Bb4+ {[%emt 0:00:08]} 4. Bd2 {[%emt 0:00:06]} a5 {[%emt 0:00:06]} 5. a3 {[%emt 0:00:11]} Bxd2+ {[%emt 0:00:23]} 6. Qxd2 {[%emt 0:00:07]} d6 {[%emt 0:00:07]} 7. Nc3 {[%emt 0:00:11]} Qe7 {[%emt 0:01:37]} 8. g3 {[%emt 0:02:45]} O-O {[%emt 1:31:01]} 9. Bg2 {[%emt 0:00:07]} e5 {[%emt 0:00:00]} 10. O-O {[%emt 0:00:16]} Nbd7 {[%emt 0:00:00]} 11. e4 {[%emt 0:05:34]} a4 {[%emt 0:00:00]} 12. Rfe1 {[%emt 0:04:56] White is slightly better.} c6 {[%emt 0:00:00]} 13. h3 {[%emt 0:06:35]} exd4 {[%emt 0:00:00]} 14. Nxd4 {[%emt 0:06:41] Threatens to win with Nf5.} Ne5 {[%emt 0:00:00] [#]} (14... Nc5 $14) 15. Qc2 $1 $16 {[%emt 0:06:48] Black is now going downhill.} Nxc4 {[%emt 0:00:00]} 16. Nxa4 {[%emt 0:00:17][%cal Bc3a4,Ba4b6,Bb6c4][%mdl 32]} Ne5 {[%emt 0:00:00]} 17. Nb6 {[%emt 0:01:29]} Rb8 {[%emt 0:00:00]} 18. f4 {[%emt 0:02:55]} Ng6 {[%emt 0:00:00]} 19. a4 {[%emt 0:11:46]} Qd8 {[%emt 0:00:00]} (19... d5 $142) 20. a5 {[%emt 0:00:42]} Ne7 {[%emt 0:00:00]} 21. b4 $36 {[%emt 0:04:08][%mdl 2048] Keeping Black busy.} Nd7 {[%emt 0:00:00]} 22. Nc4 {[%emt 0:07:43] White has more active pieces.} d5 {[%emt 0:00:00]} 23. exd5 {[%emt 0:04:00]} Nxd5 {[%emt 0:00:00]} 24. b5 {[%emt 0:02:45]} cxb5 {[%emt 0:00:00]} (24... N7f6 $16 {was worth a try.}) 25. Nxb5 $18 {[%emt 0:04:09]} ({Not} 25. Bxd5 bxc4 (25... Nf6 26. Bxf7+ Rxf7 27. Nxb5 $16) 26. Qxc4 Nf6 $14) 25... Nc7 {[%emt 0:00:00] [#]} (25... Nb4 {keeps fighting.} 26. Qc3 Na6) 26. Nbd6 {[%emt 0:01:24]} b5 {[%emt 0:00:10]} (26... Ne6 $142 27. Nxf7 Rxf7) 27. Nxc8 {[%emt 0:03:01]} Rxc8 {[%emt 0:02:18]} (27... Qxc8 {was necessary.} 28. Nd6 Qd8) 28. Nd6 {[%emt 0:00:22]} Rb8 {[%emt 0:00:01] Black is weak on the light squares} 29. Rad1 {[%emt 0:01:43]} Ne8 {[%emt 0:04:56]} (29... Ne6 $142 30. Qa2 Qf6) 30. Nxe8 {[%emt 0:06:12] White is clearly winning.} Rxe8 {[%emt 0:00:02]} 31. Rxe8+ {[%emt 0:00:53]} Qxe8 {[%emt 0:00:01]} 32. Qc7 {[%emt 0:02:56]} Nf8 {[%emt 0:00:22]} 33. a6 {[%emt 0:00:49][%cal Ba5a6,Ba6a7][%mdl 32]} Qe3+ {[%emt 0:00:03]} 34. Kh2 {[%emt 0:01:20]} Re8 {[%emt 0:00:08]} 35. a7 {[%emt 0:01:42]} h5 {[%emt 0:00:02]} 36. h4 {[%emt 0:03:37]} (36. a8=B Rxa8 37. Qc1 Qxc1 38. Rxc1 Rb8 $11) 36... Qf2 {[%emt 0:03:37]} 37. Qb8 {[%emt 0:00:46] Weighted Error Value: White=0.09 (flawless) /Black=0.65.  Mistake:       	---       	Black=7      Inaccurate:     	---       	Black=1      OK:         	White=10    	Black=7      Best:        	White=4     	Black=1      Strong:       	White=1     	---} 1-0

[Event "Romanian Superliga 2024"]
[Site "Mamaia"]
[Date "2024.10.02"]
[Round "5.26"]
[White "Erdos, Viktor"]
[Black "Ogleznev, Alexandr"]
[Result "1/2-1/2"]
[ECO "D11"]
[WhiteElo "2538"]
[BlackElo "2301"]
[Annotator "TA"]
[PlyCount "85"]
[EventDate "2024.09.26"]
[EventType "team-tourn"]
[EventCountry "ROU"]
[SourceTitle "playchess.com"]
[Source "ChessBase"]
[SourceQuality "1"]
[TimeControl "40/5400+30:1800+30"]

{[%evp 10,85,6,9,11,0,0,14,9,0,0,0,0,0,0,0,5,0,0,0,6,0,5,0,12,12,14,14,32,22,22,21,17,17,44,8,37,9,39,8,8,8,16,0,23,23,23,24,24,8,9,3,10,0,51,66,70,67,71,65,50,51,62,42,47,31,139,134,116,13,42,50,191,48,45,25,31,42]} 1. d4 {[%emt 0:03:40]} d5 {[%emt 0:00:21]} 2. c4 {[%emt 0:00:09]} c6 {[%emt 0:00:03]} 3. Nf3 {[%emt 0:00:05]} Nf6 {[%emt 0:00:07]} 4. e3 {[%emt 0:00:06]} Bg4 {[%emt 0:01:01]} 5. Qb3 {[%emt 0:01:03]} Qb6 {[%emt 0:02:46]} 6. Ne5 {[%emt 0:00:07]} Bf5 {[%emt 0:02:39]} 7. cxd5 {[%emt 0:00:43]} Qxb3 {[%emt 0:00:12]} 8. axb3 {[%emt 0:00:06]} Nxd5 {[%emt 0:00:06] The position is equal.} 9. Bd3 {[%emt 0:00:07]} Bxd3 {[%emt 0:01:05]} 10. Nxd3 {[%emt 0:00:10]} Na6 {[%emt 0:03:01]} 11. Bd2 {[%emt 0:01:43]} e6 {[%emt 0:00:26]} 12. Ke2 {[%emt 0:00:07]} Ndb4 {[%emt 0:14:58]} 13. Nxb4 {[%emt 0:05:50]} Nxb4 {[%emt 0:00:33][%cal Ba6b4,Bb4d5,Bd5c7,Bc7b5,Bb5d6,Bd6f5][%mdl 32]} 14. Na3 {[%emt 0:00:08]} Nd5 {[%emt 0:25:25]} 15. Nc4 {[%emt 0:01:37]} Nc7 {[%emt 0:00:12]} 16. g4 {[%emt 0:29:08]} Be7 {[%emt 0:06:25]} 17. h4 {[%emt 0:00:07]} h5 {[%emt 0:07:39]} 18. g5 {[%emt 0:06:16]} g6 {[%emt 0:02:14]} 19. Rhd1 {[%emt 0:10:04] Black is weak on the dark squares} O-O {[%emt 0:01:53]} 20. Be1 {[%emt 0:00:03]} Nb5 {[%emt 0:01:38]} 21. f3 {[%emt 0:00:15]} Bd6 {[%emt 0:11:26]} 22. Ba5 {[%emt 0:05:48]} Rfe8 {[%emt 0:05:24]} 23. Rd3 {[%emt 0:01:39]} Rac8 {[%emt 0:02:21]} 24. f4 {[%emt 0:03:44]} Be7 {[%emt 0:04:16]} 25. Kf3 {[%emt 0:03:16]} Nd6 {[%emt 0:03:29]} 26. Ne5 {[%emt 0:13:25]} Nf5 {[%emt 0:00:09]} 27. Be1 {[%emt 0:01:19]} Ra8 {[%emt 0:01:21]} 28. e4 $36 {[%emt 0:07:15][%mdl 2048] White has some pressure.} Nd6 {[%emt 0:00:04]} 29. Bb4 {[%emt 0:00:54]} Nb5 {[%emt 0:00:40]} 30. Bc5 {[%emt 0:01:16]} Kg7 {[%emt 0:01:47]} 31. Ra4 {[%emt 0:02:01]} Bd8 {[%emt 0:00:38]} ({Black should try} 31... Bd6 $11) 32. d5 $1 $14 {[%emt 0:01:17]} exd5 {[%emt 0:00:27]} 33. exd5 {[%emt 0:00:03]} cxd5 {[%emt 0:01:08]} 34. Rxd5 {[%emt 0:00:02] Hoping for Bb4.} Bc7 $1 {[%emt 0:00:10]} 35. Nd7 {[%emt 0:00:45][%cal Oc5f8]} a6 {[%emt 0:00:24]} 36. Bf2 {[%emt 0:02:26]} Rad8 {[%emt 0:00:23]} 37. Rc4 {[%emt 0:00:29] Threatens to win with Nf6.} Bd6 {[%emt 0:00:59]} (37... Re6 $14) 38. Nf6 $16 {[%emt 0:00:53]} Re6 {[%emt 0:00:31] [#]} 39. Bc5 {[%emt 0:00:52] White is much more active.} (39. Bd4 $1 $16) 39... Ra8 {[%emt 0:00:55]} 40. f5 {[%emt 0:00:00]} gxf5 {[%emt 0:00:00] [#]} ({Better is} 40... Re5 $1 $14) 41. Nxh5+ {[%emt 0:04:23]} (41. Bxd6 $1 $18 Rxd6 42. Rxd6 (42. Nxh5+ Kf8 $18) 42... Nxd6 43. Nxh5+ Kh7 44. Rc5) 41... Kg6 $14 {[%emt 0:01:01]} 42. Nf6 {[%emt 0:02:46]} Be5 {[%emt 0:01:19]} 43. Nd7 {[%emt 0:18:29] Weighted Error Value: White=0.14 (very precise) /Black=0.18 (very precise) .  Mistake:       	White=2     	Black=3      Inaccurate:     	White=3     	Black=4      OK:         	White=15    	Black=15     Best:        	White=1     	---        Strong:       	White=1     	Black=1} 1/2-1/2